fUSD/lending_fUSD_20240913
["ID","MTS","AMOUNT","RATE_DAILY","PERIOD"]
[337945596,1726211461251,-152.46,0.000149,31]
[337945598,1726211461260,-152.46,0.000149,31]
[337945600,1726211461268,-152.46,0.000149,31]
[337945602,1726211461277,-152.46,0.000149,31]
[337945604,1726211461286,-152.46,0.000149,31]
[337945605,1726211461295,-152.46,0.000149,31]
[337945607,1726211461305,-152.46,0.000149,31]
[337945609,1726211461314,-152.46,0.000149,31]
[337945611,1726211461323,-152.46,0.000149,31]
[337945613,1726211461332,-199.01920922,0.000149,2]
[337945615,1726211461341,-2038.73891699,0.000149,2]
[337945617,1726211461350,-7276.21146926,0.00014927,2]
[337945619,1726211461359,-5000.0,0.00014927,2]
[337945621,1726211461368,-5000.0,0.00014927,2]
[337945622,1726211461379,-5000.0,0.00014927,2]
[337945623,1726211461388,-185.09588,0.00014933,2]
[337945624,1726211461398,-800.46541841,0.0001494,2]
[337945625,1726211461408,-4391.1782883,0.00014945,2]
[337945626,1726211461418,-47561.91898156,0.00014955,2]
[337945627,1726211461428,-1461.39736127,0.00014956,2]
[337945628,1726211461437,-157.4397985,0.0001496,2]
[337945629,1726211461446,-157.4397985,0.0001497,2]
[337945630,1726211461455,-157.4397985,0.0001497,2]
[337945631,1726211461464,-157.4397985,0.0001497,2]
[337945632,1726211461473,-3233.7188958,0.0001497,2]
[337945634,1726211461483,-2076.2595032,0.0001497,2]
[337945636,1726211461492,-918.8001106,0.0001497,2]
[337945638,1726211461503,-310836.39569288,0.0001498,2]
[337945640,1726211461513,-3000.0,0.0001498,2]
[337945642,1726211461522,-3000.0,0.0001498,2]
[337945644,1726211461531,-3000.0,0.0001498,2]
[337945646,1726211461540,-3000.0,0.0001498,2]
[337945648,1726211461549,-3000.0,0.0001498,2]
[337945650,1726211461559,-1075.08,0.0001498,2]
[337945652,1726211461568,-10703.42240616,0.0001498,2]
[337945654,1726211461576,-800.46541841,0.0001498,2]
[337945656,1726211461585,-52178.32334255,0.00014989,2]
[337945658,1726211461594,-9426.65030309,0.00014998,2]
[337945660,1726211461604,-239104.78882627,0.00014999,2]
[337945662,1726211461612,-92219.86688747,0.00014999,2]
[337945664,1726211461622,-1000.0,0.00014999,2]
[337945666,1726211461631,-151.0,0.00014999,2]
[337945668,1726211461641,-174172.62193337,0.00015,2]
[337945699,1726211461931,-1915.14999999,0.00015,2]
[337945701,1726211461947,-380.0,0.00015,2]
[337945704,1726211461971,-1303.3,0.00014592,2]
[337945706,1726211461980,-3738.3,0.00015,2]
[337945708,1726211461991,-72851.66355887,0.00015,2]
[337945710,1726211462002,-140376.756745,0.00015,2]
[337945714,1726211462026,-663.2,0.00015,2]
[337945716,1726211462037,-2529.82496407,0.00015,2]
[337945718,1726211462048,-2510.72,0.00015,2]
[337945720,1726211462059,-8752.22233078,0.00015,2]
[337945743,1726211462288,-371.84932848,0.00013858,2]
[337945745,1726211462302,-1688.87222193,0.00013858,2]
[337945747,1726211462312,-1303.3,0.00014866,2]
[337945749,1726211462321,-83171.00866008,0.00015,2]
[337945751,1726211462332,-706.04,0.00015,2]
[337945753,1726211462343,-440.01645176,0.00015,2]
[337945755,1726211462355,-346.93698047,0.00015,2]
[337945757,1726211462366,-3048.32772882,0.00015,2]
[337945759,1726211462378,-1610.53421101,0.00015,2]
[337945761,1726211462393,-30132.31558998,0.00015,2]
[337945763,1726211462404,-397.63098387,0.00015,2]
[337945764,1726211462415,-4832.22556236,0.00015,2]
[337945766,1726211462426,-9920.5,0.00015,2]
[337945789,1726211462790,-530.95163184,0.00015,2]
[337945790,1726211462801,-297.95376087,0.00015,2]
[337945792,1726211462813,-293.30521316,0.00015,2]
[337945852,1726211463662,-1130.5,0.00015,2]
[337945854,1726211463674,-735.915,0.00015,2]
[337945856,1726211463686,-17372.54439704,0.00015,2]
[337945858,1726211463698,-659.52544,0.00015,2]
[337945860,1726211463710,-1448.13210903,0.00015,2]
[337945862,1726211463722,-12175.6,0.00015,2]
[337945864,1726211463740,-150.0,0.0001337,2]
[337945865,1726211463750,-185.07109863,0.00015,2]
[337945866,1726211463763,-432.0,0.00015,2]
[337945867,1726211463775,-1622.83351711,0.00015,2]
[337945868,1726211463788,-1310.89655929,0.00015,2]
[337945869,1726211463799,-5557.37127244,0.00015,2]
[337945870,1726211463811,-2833.13889606,0.00015,2]
[337945871,1726211463823,-445.16986629,0.00015,2]
[337945872,1726211463835,-1089.95353355,0.00015,2]
[337945873,1726211463848,-19225.41725305,0.00015,2]
[337945874,1726211463860,-449320.07116783,0.00015,2]
[337945894,1726211464129,-2060.72155041,0.00014067,2]
[337945900,1726211464183,-16585.22085731,0.00015,2]
[337945902,1726211464196,-500.0,0.00015,2]
[337945905,1726211464208,-62003.14113327,0.00015,2]
[337945907,1726211464220,-9031.66202196,0.00015,2]
[337946369,1726211468975,-970.74420354,0.00015,2]
[337946371,1726211468986,-353.68141749,0.00015,2]
[337946378,1726211469056,-663.02749647,0.00015,2]
[337946380,1726211469067,-748.82902201,0.00015,2]
[337946383,1726211469079,-275.5687984,0.00015,2]
[337946385,1726211469092,-1613.48867776,0.00015,2]
[337946387,1726211469104,-4017.62324958,0.00015,2]
[337946389,1726211469116,-3672.2463162,0.00015,2]
[337946392,1726211469133,-3765.69953211,0.00015,2]
[337946394,1726211469145,-708.389047,0.00015,2]
[337946397,1726211469156,-573.43013765,0.00015,2]
[337946399,1726211469166,-78658.03237406,0.00015,2]
[337946401,1726211469177,-2448.72464847,0.00015,2]
[337947147,1726211510584,500.0,0.00011164,2]
[337947148,1726211795087,381.01,0.0001082,2]
[337947150,1726211907182,1050.0,0.00011,2]
[337947151,1726212004473,155.01,0.00010959,2]
[337947158,1726212293155,361.95,0.00010644,2]
[337947175,1726212631864,-1000.0,0.00012447,2]
[337947176,1726212631875,-786.68,0.00012477,2]
[337947178,1726212631884,-165.86,0.00012506,2]
[337947179,1726212631893,-200.0,0.0001253,2]
[337947181,1726212631903,-250.0,0.0001253,2]
[337947184,1726212631956,-300.0,0.00012585,2]
[337947185,1726212631965,-1101.87474252,0.00012586,2]
[337947186,1726212631977,-3955.96712328,0.00012586,2]
[337947187,1726212631987,-1602.76914189,0.00012586,2]
[337947188,1726212631998,-939.82724979,0.00012586,2]
[337947189,1726212632009,-1075.9549519,0.00012586,2]
[337947190,1726212632019,-471.34916747,0.00012586,2]
[337947191,1726212632030,-351.96,0.00012586,2]
[337947192,1726212632041,-2968.11,0.00012586,2]
[337947193,1726212632056,-3494.76952503,0.00012586,2]
[337947194,1726212632068,-1382.78807392,0.00012586,2]
[337947195,1726212632079,-622.0,0.00012586,2]
[337947196,1726212632095,-439.35,0.00012586,2]
[337947197,1726212632106,-1517.42729465,0.00012586,2]
[337947198,1726212632118,-268.07010932,0.00012586,2]
[337947199,1726212632129,-1378.29577402,0.00012586,2]
[337947200,1726212632141,-113.12684621,0.00012586,2]
[337947201,1726212632151,-164.38195921,0.000129,2]
[337947202,1726212632163,-31.10666594,0.000129,2]
[337947203,1726212632172,-361.95,0.00012908,2]
[337947204,1726212632182,-205.94,0.00012988,2]
[337947205,1726212632192,-160.7,0.00012988,2]
[337947206,1726212632201,-100.37210932,0.0001299,2]
[337947207,1726212632212,-50.85789068,0.0001299,2]
[337947208,1726212632222,-151.23,0.0001299,2]
[337947209,1726212632232,-151.23,0.0001299,2]
[337947210,1726212632242,-151.23,0.0001299,2]
[337947211,1726212632252,-151.23,0.0001299,2]
[337947212,1726212632262,-151.23,0.0001299,2]
[337947213,1726212632271,-99.36151765,0.0001299,2]
[337947214,1726212632287,-51.86848235,0.0001299,2]
[337947215,1726212632296,-499.99,0.0001299,2]
[337947216,1726212632305,-89.16151765,0.0001299,2]
[337947217,1726212632317,-62.06848235,0.0001299,2]
[337947218,1726212632326,-1817.78380315,0.0001299,2]
[337947219,1726212632337,-19207.54554323,0.0001299,2]
[337947221,1726212632351,-2815.79065362,0.0001299,2]
[337947223,1726212632361,-151.23,0.0001299,2]
[337947225,1726212632370,-151.23,0.0001299,2]
[337947227,1726212632379,-151.23,0.0001299,2]
[337947229,1726212632388,-151.23,0.0001299,2]
[337947230,1726212632398,-151.23,0.0001299,2]
[337947231,1726212632407,-151.23,0.0001299,2]
[337947232,1726212632416,-151.23,0.0001299,2]
[337947233,1726212632426,-151.23,0.0001299,2]
[337947234,1726212632435,-151.23,0.0001299,2]
[337947235,1726212632444,-151.23,0.0001299,2]
[337947236,1726212632454,-151.23,0.0001299,2]
[337947237,1726212632464,-151.23,0.0001299,2]
[337947238,1726212632474,-151.23,0.0001299,2]
[337947239,1726212632483,-151.23,0.0001299,2]
[337947240,1726212632493,-151.23,0.0001299,2]
[337947241,1726212632503,-151.23,0.0001299,2]
[337947242,1726212632512,-151.23,0.0001299,2]
[337947243,1726212632522,-151.23,0.0001299,2]
[337947244,1726212632531,-106.71799336,0.0001299,2]
[337947259,1726212637867,-182.5995416,0.00012377,2]
[337947260,1726212637878,-44.51200664,0.0001299,2]
[337947261,1726212637889,-151.23,0.0001299,2]
[337947262,1726212637899,-151.23,0.0001299,2]
[337947263,1726212637909,-151.23,0.0001299,2]
[337947264,1726212637919,-151.23,0.0001299,2]
[337947265,1726212637930,-151.23,0.0001299,2]
[337947266,1726212637941,-151.23,0.0001299,2]
[337947267,1726212637950,-151.23,0.0001299,2]
[337947268,1726212637959,-1004.08,0.00012999,2]
[337947269,1726212637968,-732.0,0.00012999,2]
[337947270,1726212637977,-1107.29,0.00012999,2]
[337947271,1726212637986,-500.0,0.00012999,2]
[337947272,1726212638006,-500.0,0.00012999,2]
[337947273,1726212638015,-500.0,0.00012999,2]
[337947274,1726212638025,-730.8,0.00012999,2]
[337947275,1726212638034,-879.94,0.00012999,2]
[337947276,1726212638043,-758.49,0.00012999,2]
[337947277,1726212638052,-2711.52,0.00012999,2]
[337947278,1726212638061,-1149.3,0.00012999,2]
[337947279,1726212638070,-1026.95,0.00012999,2]
[337947280,1726212638079,-764.17,0.00012999,2]
[337947281,1726212638088,-500.0,0.00012999,2]
[337947282,1726212638098,-728.48,0.00012999,2]
[337947283,1726212638107,-500.0,0.00012999,2]
[337947284,1726212638116,-500.0,0.00012999,2]
[337947285,1726212638125,-500.0,0.00012999,2]
[337947286,1726212638135,-500.0,0.00012999,2]
[337947287,1726212638144,-500.0,0.00012999,2]
[337947288,1726212638153,-613.84176624,0.00012999,2]
[337947289,1726212638162,-500.0,0.00012999,2]
[337947290,1726212638171,-12085.10268552,0.00012999,2]
[337947291,1726212638195,-698.46349581,0.00012999,2]
[337947292,1726212638208,-2768.93381867,0.00012999,2]
[337947293,1726212638218,-273.4291908,0.00012999,2]
[337947294,1726212638230,-226.5708092,0.00012999,2]
[337947295,1726212638240,-500.0,0.00012999,2]
[337947296,1726212638250,-18.17752714,0.00012999,2]
[337947297,1726212638261,-904.99247286,0.00012999,2]
[337947298,1726212638271,-648.43272714,0.00012999,2]
[337947299,1726212638289,-423.10202108,0.00012999,2]
[337947300,1726212638301,-302.60525178,0.00012999,2]
[337947301,1726212638310,-978.19474841,0.00013,2]
[337947302,1726212638321,-30981.17990163,0.00013,2]
[337947303,1726212638330,-1039.44,0.00013,2]
[337947304,1726212638339,-4911489.34730576,0.00013,2]
[337947305,1726212638353,-1090623.54864584,0.00013,2]
[337947306,1726212638365,-2659982.43305975,0.00013,2]
[337947307,1726212638374,-2844.83357662,0.00013,2]
[337947309,1726212638383,-506575.27231719,0.00013,2]
[337947312,1726212638406,-351.92,0.00013,2]
[337947314,1726212638417,-7596.73680442,0.00013,2]
[337947316,1726212638428,-582.24356216,0.00013,2]
[337947319,1726212638439,-51568.327863,0.00013,2]
[337947321,1726212638449,-561.82928208,0.00013,2]
[337947323,1726212638460,-2200.03350926,0.00013,2]
[337947468,1726212639925,-14402.19677375,0.00013,2]
[337947470,1726212639936,-4010.853084,0.00013,2]
[337947472,1726212639947,-388.52572766,0.00013,2]
[337947474,1726212639959,-2933.56225702,0.00013,2]
[337947476,1726212639970,-534.07432832,0.00013,2]
[337947479,1726212639981,-1490.48160631,0.00013,2]
[337947481,1726212639993,-4355.31238879,0.00013,2]
[337947484,1726212640013,-94028.51986877,0.00013,2]
[337947486,1726212640025,-593.84347609,0.00013,2]
[337947488,1726212640036,-1065.9793395,0.00013,2]
[337947490,1726212640047,-256.89893274,0.00013,2]
[337947493,1726212640066,-533.1,0.00013,2]
[337947495,1726212640077,-2945.39012647,0.00013,2]
[337947497,1726212640088,-312.3160075,0.00013,2]
[337947499,1726212640099,-670.7,0.00013,2]
[337947501,1726212640111,-475.21517826,0.00013,2]
[337947504,1726212640123,-298.57312534,0.00013,2]
[337947506,1726212640133,-24734.09749656,0.00013,2]
[337947508,1726212640144,-8704.38635016,0.00013,2]
[337947510,1726212640156,-2098.83755617,0.00013,2]
[337947516,1726212640212,-9203.11958714,0.00013,2]
[337949597,1726212900219,342.32,0.00010822,2]
[337949599,1726213410076,325.2,0.00010563,2]
[337949601,1726213758506,-2837.45031618,0.00012233,2]
[337949602,1726213758533,-237.67577599,0.00012241,2]
[337949607,1726213832086,-12.32422401,0.00012241,2]
[337949608,1726213832096,-441.89972134,0.00012245,2]
[337949609,1726213832107,-496.07027866,0.00012245,2]
[337949610,1726213832116,-240.17,0.00012286,2]
[337949611,1726213832125,-1000.0,0.00012302,2]
[337949612,1726213832135,-4770.12991462,0.00012302,2]
[337949613,1726213832145,-393.34,0.00012323,2]
[337949614,1726213832154,-250.0,0.00012333,2]
[337949615,1726213832164,-187.7,0.00012498,2]
[337949616,1726213832173,-150.29,0.0001271,2]
[337949617,1726213832183,-325.2,0.00012827,2]
[337949618,1726213832191,-886.52276591,0.00012899,2]
[337949619,1726213832246,-755.339,0.00012899,2]
[337949620,1726213832259,-399.43250517,0.00012899,2]
[337949621,1726213832267,-200.02749491,0.00012973,2]
[337949622,1726213832301,-299.97250509,0.00012973,2]
[337949623,1726213832311,-150.0,0.00012997,2]
[337949624,1726213832320,-184.651,0.00012998,2]
[337949625,1726213832329,-44.48333767,0.00012998,2]
[337949626,1726213838050,-455.51666233,0.00012998,2]
[337949627,1726213838059,-500.0,0.00012998,2]
[337949628,1726213838068,-500.0,0.00012998,2]
[337949630,1726213838077,-822.32,0.00012998,2]
[337949631,1726213838086,-287.16333767,0.00012998,2]
[337949632,1726213838097,-412.88666233,0.00012998,2]
[337949633,1726213838107,-246.31333767,0.00012998,2]
[337949634,1726213838117,-553.04533327,0.00012998,2]
[337949636,1726213838128,-517.53132906,0.00012998,2]
[337949637,1726213838137,-524.17,0.00012998,2]
[337949638,1726213838146,-2237.11,0.00012998,2]
[337949639,1726213838156,-196.04236352,0.00012998,2]
[337949640,1726213838165,-500.0,0.00012998,2]
[337949641,1726213838174,-500.0,0.00012998,2]
[337949642,1726213838183,-500.0,0.00012998,2]
[337949643,1726213838192,-500.0,0.00012998,2]
[337949644,1726213838201,-500.0,0.00012998,2]
[337949645,1726213838210,-603.62,0.00012998,2]
[337949646,1726213838219,-500.0,0.00012998,2]
[337949647,1726213838229,-500.10581181,0.00012998,2]
[337949648,1726213838238,-2204.4013707,0.00012998,2]
[337949649,1726213838249,-325.4786293,0.00012998,2]
[337949650,1726213838259,-500.0,0.00012998,2]
[337949651,1726213838268,-705.46,0.00012998,2]
[337949652,1726213838277,-500.0,0.00012998,2]
[337949653,1726213838286,-1413.4,0.00012998,2]
[337949654,1726213838295,-500.0,0.00012998,2]
[337949655,1726213838305,-436.46801987,0.00012998,2]
[337949656,1726213838314,-500.0,0.00012998,2]
[337949657,1726213838324,-520.25,0.00012998,2]
[337949658,1726213838334,-613.32,0.00012998,2]
[337949659,1726213838343,-239.0159347,0.00012998,2]
[337949660,1726213838352,-500.0,0.00012998,2]
[337949661,1726213838361,-682.7214276,0.00012998,2]
[337949662,1726213838373,-571.8385724,0.00012998,2]
[337949663,1726213838382,-500.0,0.00012998,2]
[337949664,1726213838391,-1513.19,0.00012998,2]
[337949665,1726213838400,-1516.88,0.00012998,2]
[337949666,1726213838410,-597.25,0.00012998,2]
[337949667,1726213838419,-1266.62,0.00012998,2]
[337949668,1726213838429,-500.0,0.00012998,2]
[337949669,1726213838438,-500.0,0.00012998,2]
[337949671,1726213838447,-500.0,0.00012998,2]
[337949673,1726213838456,-2037.24,0.00012998,2]
[337949675,1726213838466,-819.14,0.00012998,2]
[337949677,1726213838475,-701.5,0.00012998,2]
[337949679,1726213838484,-884.47,0.00012998,2]
[337949681,1726213838493,-1656.8714276,0.00012998,2]
[337949683,1726213838504,-2020.6885724,0.00012998,2]
[337949685,1726213838514,-500.0,0.00012998,2]
[337949687,1726213838524,-500.0,0.00012998,2]
[337949688,1726213838533,-2092.5,0.00012998,2]
[337949690,1726213838542,-500.0,0.00012998,2]
[337949692,1726213838551,-949.04,0.00012998,2]
[337949693,1726213838560,-962.25,0.00012998,2]
[337949694,1726213838569,-500.0,0.00012998,2]
[337949696,1726213838578,-1390.78,0.00012998,2]
[337949698,1726213838587,-1084.58,0.00012998,2]
[337949701,1726213838597,-3456.68,0.00012998,2]
[337949703,1726213838605,-843.28,0.00012998,2]
[337949707,1726213838615,-1058.58,0.00012998,2]
[337949709,1726213838625,-808.81,0.00012998,2]
[337949711,1726213838634,-1061.15,0.00012998,2]
[337949713,1726213838643,-3122.66,0.00012998,2]
[337949715,1726213838652,-726.88,0.00012998,2]
[337949717,1726213838662,-500.0,0.00012998,2]
[337949719,1726213838671,-1725.0417776,0.00012998,2]
[337949721,1726213838682,-4795.2382224,0.00012998,2]
[337949723,1726213838691,-500.0,0.00012998,2]
[337949725,1726213838700,-793.53,0.00012998,2]
[337949727,1726213838709,-2598.54,0.00012998,2]
[337949728,1726213838718,-749.12,0.00012998,2]
[337949730,1726213838732,-700.35,0.00012998,2]
[337949732,1726213838742,-1615.7,0.00012998,2]
[337949734,1726213838751,-13738.83,0.00012998,2]
[337949736,1726213838763,-1035.81321813,0.00012998,2]
[337949738,1726213838774,-1032.21678187,0.00012998,2]
[337949740,1726213838784,-1101.41,0.00012998,2]
[337949742,1726213838793,-683.53,0.00012998,2]
[337949744,1726213838804,-984.16,0.00012998,2]
[337949746,1726213838814,-2954.01,0.00012998,2]
[337949748,1726213838823,-832.6,0.00012998,2]
[337949750,1726213838832,-500.0,0.00012998,2]
[337949752,1726213838841,-819.64,0.00012998,2]
[337949754,1726213838851,-2083.19,0.00012998,2]
[337949756,1726213838860,-500.0,0.00012998,2]
[337949757,1726213838869,-500.0,0.00012998,2]
[337949759,1726213838879,-433.99007627,0.00012998,2]
[337949762,1726213838890,-1307.32992373,0.00012998,2]
[337949764,1726213838900,-1190.84,0.00012998,2]
[337949766,1726213838909,-500.0,0.00012998,2]
[337949767,1726213838918,-500.0,0.00012998,2]
[337949769,1726213838927,-500.0,0.00012998,2]
[337949771,1726213838937,-698.13,0.00012998,2]
[337949773,1726213838946,-500.0,0.00012998,2]
[337949775,1726213838955,-500.0,0.00012998,2]
[337949777,1726213838964,-2577.22,0.00012998,2]
[337949779,1726213838974,-500.0,0.00012998,2]
[337949781,1726213838983,-500.0,0.00012998,2]
[337949782,1726213838992,-500.0,0.00012998,2]
[337949784,1726213839002,-991.07144607,0.00012998,2]
[337949787,1726213839018,-742.62314607,0.00012998,2]
[337949789,1726213839028,-2000.0,0.00012998,2]
[337949792,1726213839047,-4131.85958877,0.00012998,2]
[337949794,1726213839058,-7038.92581909,0.00012998,2]
[337949796,1726213839068,-500.0,0.00012998,2]
[337949798,1726213839077,-500.0,0.00012998,2]
[337949800,1726213839087,-500.0,0.00012998,2]
[337949802,1726213839096,-500.0,0.00012998,2]
[337949803,1726213839105,-500.0,0.00012998,2]
[337949805,1726213839114,-884.71,0.00012998,2]
[337949807,1726213839123,-795.31,0.00012998,2]
[337949809,1726213839133,-500.0,0.00012998,2]
[337949811,1726213839142,-648.12,0.00012998,2]
[337949813,1726213839151,-500.0,0.00012998,2]
[337949815,1726213839161,-765.18,0.00012998,2]
[337949817,1726213839170,-500.0,0.00012998,2]
[337949819,1726213839179,-500.0,0.00012998,2]
[337949820,1726213839188,-500.0,0.00012998,2]
[337949822,1726213839198,-500.0,0.00012998,2]
[337949824,1726213839208,-733.15,0.00012998,2]
[337949826,1726213839217,-719.1,0.00012999,2]
[337949828,1726213839227,-518.96,0.00012999,2]
[337949830,1726213839236,-500.0,0.00012999,2]
[337949832,1726213839246,-500.0,0.00012999,2]
[337949834,1726213839256,-500.0,0.00012999,2]
[337949836,1726213839266,-687.62,0.00012999,2]
[337949838,1726213839275,-500.0,0.00012999,2]
[337949839,1726213839284,-500.0,0.00012999,2]
[337949841,1726213839293,-500.0,0.00012999,2]
[337949843,1726213839303,-500.0,0.00012999,2]
[337949845,1726213839313,-500.0,0.00012999,2]
[337949847,1726213839322,-500.0,0.00012999,2]
[337949849,1726213839333,-426.51311439,0.00012999,2]
[337949851,1726213839343,-1097.55,0.00012999,2]
[337949853,1726213839352,-688.42,0.00012999,2]
[337949855,1726213839361,-2251.54,0.00012999,2]
[337949857,1726213839370,-500.0,0.00012999,2]
[337949859,1726213839381,-500.0,0.00012999,2]
[337949861,1726213839390,-680.82,0.00012999,2]
[337949863,1726213839401,-500.0,0.00012999,2]
[337949865,1726213839411,-788.87,0.00012999,2]
[337949866,1726213839421,-500.0,0.00012999,2]
[337949868,1726213839430,-500.0,0.00012999,2]
[337949870,1726213839439,-500.0,0.00012999,2]
[337949872,1726213839450,-754.37,0.00012999,2]
[337949874,1726213839459,-542.73,0.00012999,2]
[337949876,1726213839469,-208.59452002,0.00012999,2]
[337949878,1726213839479,-500.0,0.00012999,2]
[337949880,1726213839489,-853.47,0.00012999,2]
[337949882,1726213839498,-1395.22,0.00012999,2]
[337949884,1726213839508,-500.0,0.00012999,2]
[337949886,1726213839518,-613.01,0.00012999,2]
[337949888,1726213839527,-569.39,0.00012999,2]
[337949889,1726213839536,-844.23,0.00012999,2]
[337949891,1726213839545,-500.0,0.00012999,2]
[337949893,1726213839554,-500.0,0.00012999,2]
[337949895,1726213839564,-726.04,0.00012999,2]
[337949897,1726213839573,-868.76,0.00012999,2]
[337949899,1726213839582,-500.0,0.00012999,2]
[337949901,1726213839591,-500.0,0.00012999,2]
[337949903,1726213839600,-511.52,0.00012999,2]
[337949904,1726213839609,-500.0,0.00012999,2]
[337949906,1726213839618,-500.0,0.00012999,2]
[337949907,1726213839627,-971.45,0.00012999,2]
[337949909,1726213839637,-640.95,0.00012999,2]
[337949911,1726213839646,-500.0,0.00012999,2]
[337949913,1726213839655,-500.0,0.00012999,2]
[337949915,1726213839664,-500.0,0.00012999,2]
[337949917,1726213839674,-500.0,0.00012999,2]
[337949919,1726213839683,-500.0,0.00012999,2]
[337949921,1726213839692,-991.1,0.00012999,2]
[337949923,1726213839702,-792.55,0.00012999,2]
[337949925,1726213839711,-500.0,0.00012999,2]
[337949927,1726213839721,-464.09,0.00012999,2]
[337949928,1726213839731,-728.38,0.00012999,2]
[337949931,1726213839742,-1547.46,0.00012999,2]
[337949933,1726213839752,-567.19,0.00012999,2]
[337949935,1726213839763,-665.96,0.00012999,2]
[337949937,1726213839772,-500.0,0.00012999,2]
[337949939,1726213839781,-500.0,0.00012999,2]
[337949941,1726213839790,-692.91,0.00012999,2]
[337949943,1726213839802,-1032.82,0.00012999,2]
[337949945,1726213839812,-500.0,0.00012999,2]
[337949947,1726213839823,-629.1,0.00012999,2]
[337949949,1726213839832,-649.02,0.00012999,2]
[337949951,1726213839843,-500.0,0.00012999,2]
[337949953,1726213839854,-743.99,0.00012999,2]
[337949955,1726213839866,-756.68,0.00012999,2]
[337949958,1726213839878,-500.0,0.00012999,2]
[337949960,1726213839889,-822.23,0.00012999,2]
[337949962,1726213839898,-539.74,0.00012999,2]
[337949964,1726213839907,-1034.9,0.00012999,2]
[337949965,1726213839916,-500.0,0.00012999,2]
[337949967,1726213839926,-911.76,0.00012999,2]
[337949969,1726213839934,-543.89708674,0.00012999,2]
[337949971,1726213839943,-619.66,0.00012999,2]
[337949973,1726213839952,-500.0,0.00012999,2]
[337949975,1726213839961,-500.0,0.00012999,2]
[337949977,1726213839970,-1001.47,0.00012999,2]
[337949978,1726213839979,-797.54,0.00012999,2]
[337949979,1726213839987,-500.0,0.00012999,2]
[337949980,1726213839997,-931.62,0.00012999,2]
[337949981,1726213840006,-500.0,0.00012999,2]
[337949982,1726213840016,-561.96,0.00012999,2]
[337949983,1726213840025,-501.86,0.00012999,2]
[337949984,1726213840034,-500.0,0.00012999,2]
[337949985,1726213840043,-1558.83,0.00012999,2]
[337949986,1726213840052,-500.0,0.00012999,2]
[337949987,1726213840061,-1350.65,0.00012999,2]
[337949988,1726213840070,-785.01,0.00012999,2]
[337949989,1726213840080,-500.0,0.00012999,2]
[337949990,1726213840090,-500.0,0.00012999,2]
[337949991,1726213840099,-500.0,0.00012999,2]
[337949992,1726213840109,-500.0,0.00012999,2]
[337949993,1726213840118,-500.0,0.00012999,2]
[337949994,1726213840127,-500.0,0.00012999,2]
[337949995,1726213840136,-524.29,0.00012999,2]
[337949996,1726213840146,-646.17,0.00012999,2]
[337949997,1726213840155,-1142.81,0.00012999,2]
[337949998,1726213840165,-936.94,0.00012999,2]
[337949999,1726213840174,-500.0,0.00012999,2]
[337950000,1726213840184,-711.24,0.00012999,2]
[337950001,1726213840193,-500.0,0.00012999,2]
[337950002,1726213840202,-500.0,0.00012999,2]
[337950003,1726213840211,-500.0,0.00012999,2]
[337950004,1726213840221,-562.66,0.00012999,2]
[337950005,1726213840231,-500.0,0.00012999,2]
[337950006,1726213840242,-500.0,0.00012999,2]
[337950007,1726213840252,-653.0,0.00012999,2]